bitfinex-derivatives/quotes_SOLF0:USTF0_20220101
["timestamp","ask_amount","ask_price","bid_price","bid_amount"]
[1641058644287,4.0354785,174.63,174.6,29.5152]
[1641058644488,4.0354785,174.63,174.59,17.93158942]
[1641058644888,4.0354785,174.63,174.59,45.59637942]
[1641058645286,4.0354785,174.62,174.59,33.38545016]
[1641058645988,4.0354785,174.63,174.59,45.59637942]
[1641058646388,4.0354785,174.63,174.59,17.93158942]
[1641058647990,4.0354785,174.64,174.6,12.21092926]
[1641058648391,4.0354785,174.64,174.61,27.66479]
[1641058648890,4.0354785,174.64,174.6,12.21092926]
[1641058649492,4.0354785,174.63,174.59,17.93158942]
[1641058650392,4.0354785,174.64,174.61,27.66479]
[1641058651295,4.0354785,174.64,174.59,17.93158942]
[1641058652496,4.0354785,174.64,174.59,24.50192716]
[1641058655099,4.0354785,174.63,174.6,1.44710821]
[1641058656300,4.0354785,174.63,174.59,1.44710821]
[1641058656900,4.0354785,174.62,174.59,1.44710821]
[1641058657500,4.0354785,174.63,174.59,1.44710821]
[1641058659202,4.0354785,174.62,174.58,20.22841419]
[1641058659803,4.0354785,174.62,174.58,1.44710821]
[1641058661303,2.61885579,174.65,174.59,12.21092926]
[1641058661304,4.0354785,174.63,174.59,12.21092926]
[1641058662907,4.0354785,174.62,174.58,13.65803747]
[1641058663108,4.0354785,174.62,174.59,5.807]
[1641058663808,4.0354785,174.64,174.59,18.01792926]
[1641058664409,4.0354785,174.63,174.6,1.44710821]
[1641058665213,4.0354785,174.64,174.6,1.44710821]
[1641058666013,4.0354785,174.63,174.6,1.44710821]
[1641058667112,4.0354785,174.64,174.6,1.44710821]
[1641058668613,4.0354785,174.63,174.6,1.44710821]
[1641058669714,4.0354785,174.63,174.59,12.21092926]
[1641058671816,4.0354785,174.62,174.58,13.65803747]
[1641058672416,4.0354785,174.62,174.59,27.66479]
[1641058672617,4.0354785,174.63,174.59,39.87571926]
[1641058673219,2.61885579,174.65,174.6,1.44710821]
[1641058673220,4.0354785,174.64,174.6,1.44710821]
[1641058673917,4.0354785,174.64,174.59,12.21092926]
[1641058673918,4.0354785,174.64,174.59,20.22830883]
[1641058674418,4.0354785,174.64,174.59,47.89309883]
[1641058674619,4.0354785,174.63,174.59,47.89309883]
[1641058675219,4.0354785,174.63,174.6,1.44710821]
[1641058676021,4.0354785,174.63,174.61,5.71984213]
[1641058676422,4.0354785,174.64,174.61,5.71984213]
[1641058676922,4.0354785,174.64,174.6,1.44710821]
[1641058677122,4.0354785,174.65,174.62,1.44710821]
[1641058677321,7.0354785,174.65,174.62,1.44710821]
[1641058677722,4.0354785,174.65,174.62,1.44710821]
[1641058677921,4.0354785,174.63,174.6,1.44710821]
[1641058678924,4.0354785,174.62,174.6,1.44710821]
[1641058679623,4.0354785,174.63,174.6,1.44710821]
[1641058681125,2.61885579,174.66,174.6,1.44710821]
[1641058681126,4.0354785,174.64,174.6,1.44710821]
[1641058682231,4.0354785,174.63,174.59,12.21092926]
[1641058682431,4.0354785,174.63,174.58,12.21092926]
[1641058682631,2.61885579,174.66,174.6,8.72033292]
[1641058682831,2.61885579,174.66,174.6,5.72033292]
[1641058683430,41.59123549,174.67,174.6,5.72033292]
[1641058683631,12.10643549,174.7,174.62,12.21092926]
[1641058684436,42.81113549,174.7,174.62,12.21092926]
[1641058684634,33.2817755,174.7,174.64,27.66479]
[1641058685735,2.5770755,174.69,174.65,1.44710821]
[1641058689840,2.5770755,174.69,174.65,29.11189821]
[1641058690040,2.5770755,174.69,174.65,27.66479]
[1641058690243,2.5770755,174.69,174.63,12.21092926]
[1641058690646,2.5770755,174.69,174.66,1.44710821]
[1641058691243,33.7047,174.7,174.63,13.65803747]
[1641058691443,33.7047,174.7,174.63,20.33666843]
[1641058692247,2.57706034,174.69,174.63,20.33666843]
[1641058692446,2.57706034,174.69,174.63,48.00145843]
[1641058692845,33.7047,174.7,174.64,1.44710821]
[1641058693046,30.7047,174.7,174.64,1.44710821]
[1641058693445,2.57708037,174.69,174.64,1.44710821]
[1641058694148,30.7047,174.7,174.64,1.44710821]
[1641058694647,2.57704404,174.69,174.64,1.44710821]
[1641058695247,30.7047,174.7,174.64,1.44710821]
[1641058696250,2.5770587,174.69,174.64,1.44710821]
[1641058696752,30.7047,174.7,174.64,1.44710821]
[1641058697950,2.57704644,174.69,174.64,1.44710821]
[1641058698451,30.7047,174.7,174.64,1.44710821]
[1641058699355,2.57676261,174.69,174.64,1.44710821]
[1641058699753,2.57676261,174.69,174.64,4.44710821]
[1641058699954,12.19572153,174.72,174.64,4.44710821]
[1641058700154,12.19572153,174.72,174.64,36.56180821]
[1641058700555,12.19572153,174.72,174.68,27.66479]
[1641058700754,12.19572153,174.72,174.66,27.66479]
[1641058700955,3.0,174.73,174.66,27.66479]
[1641058701355,12.19572153,174.74,174.66,27.66479]
[1641058701553,12.19572153,174.74,174.66,34.10879]
[1641058701754,12.19572153,174.73,174.67,1.44710821]
[1641058703356,12.19572153,174.72,174.67,1.44710821]
[1641058704759,14.77207453,174.74,174.67,1.44710821]
[1641058705661,30.2643,174.75,174.67,1.44710821]
[1641058706262,2.57604193,174.74,174.67,13.65803747]
[1641058706461,2.57604193,174.74,174.67,50.45150794]
[1641058706662,2.57604193,174.74,174.69,27.66479]
[1641058707263,42.45724407,174.75,174.69,27.66479]
[1641058707864,2.57605127,174.74,174.7,1.44710821]
[1641058708964,12.19303162,174.75,174.7,1.44710821]
[1641058709165,12.19303162,174.75,174.71,3.0]
[1641058709369,12.19303162,174.75,174.71,5.71640895]
[1641058709866,27.66479,174.78,174.73,12.21092926]
[1641058711468,27.66479,174.78,174.72,12.21092926]
[1641058711667,21.16374056,174.78,174.72,12.21092926]
[1641058712069,21.16374056,174.78,174.73,12.21092926]
[1641058712666,27.66479,174.8,174.73,12.21092926]
[1641058713771,2.57440585,174.79,174.74,5.71559214]
[1641058714471,2.57440585,174.79,174.73,20.33580576]
[1641058714775,2.57440585,174.79,174.75,1.44710821]
[1641058716273,14.76302032,174.79,174.73,1.44710821]
[1641058716474,3.79451193,174.79,174.73,1.44710821]
[1641058716673,32.69342258,174.83,174.78,58.32958]
[1641058716873,32.69342258,174.83,174.78,61.04370245]
[1641058717074,32.69342258,174.83,174.8,3.0]
[1641058717279,70.60410002,174.92,174.8,15.21092926]
[1641058717478,42.26196273,174.92,174.85,5.71183778]
[1641058718277,42.26196273,174.92,174.9,5.71037003]
[1641058718677,42.26196273,174.92,174.91,27.66479]
[1641058718879,9.56854015,174.92,174.91,27.66479]
[1641058719083,12.18220131,174.92,174.91,33.3732042]
[1641058719679,12.18220131,174.92,174.91,36.3732042]
[1641058719882,32.48587015,174.95,174.91,36.3732042]
[1641058720079,32.48587015,174.95,174.94,7.0]
[1641058720280,32.48587015,174.95,174.94,12.70548297]
[1641058720478,16.11127015,174.95,174.94,12.70548297]
[1641058720679,15.43127015,174.95,174.94,40.37027297]
[1641058721180,8.58,175.08,174.94,40.37027297]
[1641058721381,9.31136267,175.12,175.02,3.0]
[1641058721578,9.31136267,175.12,175.01,3.0]
[1641058721979,9.31136267,175.12,174.97,3.0]
[1641058722388,9.31136267,175.12,174.98,3.0]
[1641058722582,9.31136267,175.12,174.95,34.862]
[1641058722583,9.31136267,175.12,174.95,37.862]
[1641058722882,27.66479,175.03,174.95,37.862]
[1641058723081,27.66479,175.03,174.94,27.66479]
[1641058724180,3.0,175.0,174.94,27.66479]
[1641058724581,27.66479,175.03,174.92,5.70955494]
[1641058724783,3.0,174.99,174.92,5.70955494]
[1641058724984,27.66479,175.03,174.92,5.70955494]
[1641058725582,3.0,175.05,174.95,5.70874008]
[1641058725985,27.66479,175.06,174.95,5.70874008]
[1641058726183,3.0,175.05,174.97,5.70792545]
[1641058726385,27.66479,175.06,174.97,5.70792545]
[1641058726785,3.0,175.09,174.98,27.66479]
[1641058726984,3.0,175.08,174.98,27.66479]
[1641058727187,22.69361684,175.1,174.98,27.66479]
[1641058727388,22.69361684,175.1,174.99,3.0]
[1641058727790,3.24584014,175.09,175.0,5.70711106]
[1641058727986,3.24584014,175.09,174.98,27.66479]
[1641058728286,3.24584014,175.09,175.06,101.4267794]
[1641058728688,27.66479,175.07,174.99,6.67710957]
[1641058729088,3.24584014,175.06,175.04,101.44115281]
[1641058729489,3.24584014,175.06,175.04,47.15093221]
[1641058729889,3.24584014,175.06,175.04,19.61093221]
[1641058730094,3.24584014,175.06,174.94,5.70890303]
[1641058730392,3.24584014,175.09,174.95,48.69623835]
[1641058730591,5.71151155,175.06,174.95,48.69623835]
[1641058730791,27.66479,175.01,174.95,48.69623835]
[1641058731092,27.66479,175.03,174.91,27.66479]
[1641058731391,27.66479,175.03,174.91,30.66479]
[1641058731692,3.2472674,175.02,174.91,27.66479]
[1641058731890,13.46763045,175.02,174.91,27.66479]
[1641058732091,13.46763045,175.02,174.87,3.0]
[1641058732298,19.18044715,175.02,174.86,3.0]
[1641058732594,3.2472674,175.01,174.82,5.7128167]
[1641058732793,3.2472674,175.01,174.84,30.66479]
[1641058732794,27.66479,174.96,174.84,30.66479]
[1641058732992,3.2472674,175.01,174.9,3.0]
[1641058733192,15.93317975,175.02,174.89,3.0]
[1641058733393,15.93317975,175.02,174.88,3.0]
[1641058733593,3.24779493,175.01,174.88,3.0]
[1641058734098,3.24779493,175.01,174.89,3.0]
[1641058734294,3.24779493,175.01,174.86,5.71167466]
[1641058734693,3.24779493,175.01,174.92,27.66479]
[1641058735693,24.77601728,175.02,174.92,27.66479]
[1641058736193,24.77601728,175.02,174.88,5.7108592]
[1641058736396,3.24728576,175.01,174.95,3.0]
[1641058736594,3.24728576,175.01,174.88,5.7108592]
[1641058736797,3.24728576,175.01,174.91,27.66479]
[1641058738099,3.24728576,175.01,174.92,3.0]
[1641058738498,10.22036305,175.02,174.91,27.66479]
[1641058738997,10.22036305,175.02,174.91,30.66479]
[1641058739297,10.22036305,175.02,174.94,3.0]
[1641058739498,24.77408171,175.06,174.92,3.0]
[1641058739898,3.24708862,175.05,174.93,3.0]
[1641058740398,3.24708862,175.05,174.91,27.66479]
[1641058740697,27.66479,175.03,174.91,27.66479]
[1641058741196,27.66479,175.03,174.93,3.0]
[1641058741398,27.66479,175.03,174.92,3.0]
[1641058741597,24.77408171,175.06,174.96,3.0]
[1641058741998,42.68970128,175.02,174.91,27.66479]
[1641058742197,42.68970128,175.02,174.96,3.0]
[1641058742399,42.68970128,175.02,174.97,3.0]
[1641058742798,42.68970128,175.02,174.98,27.66479]
[1641058743000,32.46933823,175.04,174.98,27.66479]
[1641058743199,32.46933823,175.04,174.91,27.66479]
[1641058743399,32.46933823,175.04,174.93,3.0]
[1641058743601,32.46933823,175.02,174.91,27.66479]
[1641058744200,32.46933823,175.02,174.88,8.7108592]
[1641058744402,4.05904127,174.92,174.88,3.0]
[1641058744604,4.05904127,174.92,174.84,5.7123272]
[1641058744802,4.05904127,174.92,174.87,27.66479]
[1641058745302,4.05904127,174.92,174.87,30.66479]
[1641058745505,4.05904127,174.92,174.87,27.66479]
[1641058745903,4.05904127,174.91,174.87,27.66479]
[1641058746804,4.05904127,174.9,174.87,27.66479]
[1641058747005,4.05904127,174.9,174.89,3.0]
[1641058747605,4.05904127,174.93,174.89,3.0]
[1641058748206,4.05904127,174.93,174.92,3.0]
[1641058748406,4.05904127,174.98,174.92,3.0]
[1641058748606,4.05904127,174.98,174.88,29.8654]
[1641058748807,4.05904127,174.98,174.92,30.66479]
[1641058749410,4.05904127,174.95,174.92,30.66479]
[1641058749610,4.05904127,174.95,174.94,3.0]
[1641058750109,4.05904127,174.97,174.94,3.0]
[1641058750308,4.05904127,174.97,174.92,39.83966586]
[1641058750509,4.05904127,174.97,174.93,3.0]
[1641058750812,4.05904127,174.97,174.96,27.66479]
[1641058751211,12.17487586,175.0,174.96,30.66479]
[1641058751409,12.17487586,175.0,174.96,27.66479]
[1641058751610,12.17487586,175.0,174.96,30.66479]
[1641058751808,12.17487586,175.0,174.96,27.66479]
[1641058752010,12.17487586,175.02,174.99,3.0]
[1641058752210,12.17487586,175.02,174.96,27.66479]
[1641058752409,12.17487586,175.02,175.01,3.0]
[1641058752609,12.17487586,175.02,174.96,27.66479]
[1641058752809,12.17487586,175.04,174.99,3.0]
[1641058753009,12.17487586,175.04,174.96,27.66479]
[1641058753511,12.17487586,175.04,174.99,3.0]
[1641058753711,12.17487586,175.05,174.99,3.0]
[1641058754510,12.17487586,175.05,174.98,5.70776256]
[1641058754710,12.17487586,175.05,175.02,27.66479]
[1641058755413,12.17487586,175.06,175.02,27.66479]
[1641058755815,12.17487586,175.06,175.04,3.0]
[1641058756018,12.17487586,175.07,175.05,3.0]
[1641058756214,12.17487586,175.07,175.03,3.0]
[1641058756513,12.17487586,175.07,175.02,27.66479]
[1641058756813,12.17487586,175.08,175.02,55.32958]
[1641058757014,12.17487586,175.08,175.04,3.0]
[1641058757215,12.17487586,175.08,175.02,55.32958]
[1641058757714,12.17487586,175.07,175.04,3.0]
[1641058757915,12.17487586,175.07,175.02,55.32958]
[1641058758516,12.17487586,175.07,175.02,27.66479]
[1641058758814,12.17487586,175.04,175.02,27.66479]
[1641058759415,12.17487586,175.03,175.02,27.66479]
[1641058759917,12.17487586,175.03,175.02,30.66479]
[1641058760116,12.17487586,175.03,175.02,27.66479]
[1641058760916,12.17487586,175.03,174.97,30.66479]
[1641058761119,32.46933823,175.07,174.97,30.66479]
[1641058761316,32.46933823,175.05,174.97,30.66479]
[1641058761522,32.46933823,175.05,174.97,27.66479]
[1641058761717,32.46933823,175.05,175.0,3.0]
[1641058761917,12.13428131,175.03,175.0,3.0]
[1641058762117,12.13428131,175.03,175.02,3.0]
[1641058762318,12.13428131,175.03,174.97,27.66479]
[1641058762817,12.13428131,175.04,174.97,30.66479]
[1641058763018,12.13428131,175.04,174.97,27.66479]
[1641058763619,12.13428131,175.02,174.97,27.66479]
[1641058764718,12.13428131,175.01,174.97,27.66479]
[1641058765117,12.13428131,175.01,174.97,30.66479]
[1641058765318,12.13428131,175.01,174.98,3.0]
[1641058765817,12.13428131,175.02,174.98,3.0]
[1641058766220,12.13428131,175.02,174.97,27.66479]
[1641058766619,12.13428131,175.02,175.0,3.0]
[1641058766820,12.13428131,175.02,175.01,27.66479]
[1641058767120,12.13428131,175.02,175.01,30.66479]
[1641058767320,12.13428131,175.03,175.01,30.66479]
[1641058767520,12.13428131,175.03,175.02,3.0]
[1641058767920,12.13428131,175.03,175.01,33.72979]
[1641058767921,12.13428131,175.03,175.01,27.66479]
[1641058768320,4.04385582,175.03,175.01,30.66479]
[1641058768520,4.04385582,175.03,175.02,3.0]
[1641058769122,12.13428131,175.06,175.02,3.0]
[1641058769322,12.13428131,175.06,175.03,3.0]
[1641058769520,12.13428131,175.06,175.05,3.0]
[1641058770122,14.95363902,175.09,175.05,3.0]
[1641058770321,14.95363902,175.09,175.03,5.548]
[1641058770522,14.95363902,175.09,175.07,3.0]
[1641058770724,14.95363902,175.09,175.03,5.548]
[1641058770923,12.13428131,175.09,175.08,27.66479]
[1641058771325,12.13428131,175.09,175.01,30.66479]
[1641058771624,12.13428131,175.09,175.02,3.0]
[1641058771823,12.13428131,175.09,175.06,3.0]
[1641058772223,12.13428131,175.09,175.04,3.0]
[1641058772624,12.13428131,175.09,175.01,24.17405352]
[1641058772925,12.13428131,175.08,175.05,3.0]
[1641058773725,2.81935771,175.11,175.05,3.0]
[1641058773925,2.81935771,175.11,175.04,36.37043574]
[1641058774325,2.81935771,175.11,175.05,3.0]
[1641058774528,2.81935771,175.11,175.04,36.37043574]
[1641058774725,12.13428131,175.12,175.04,36.37043574]
[1641058774929,12.13428131,175.12,175.07,27.66479]
[1641058775427,12.13428131,175.11,175.07,27.66479]
[1641058775627,12.13428131,175.11,175.07,30.66479]
[1641058776028,12.13428131,175.11,175.07,27.66479]
[1641058776230,14.49558595,175.19,175.07,27.66479]
[1641058776231,12.13428131,175.13,175.07,27.66479]
[1641058777027,12.13428131,175.13,175.04,50.00744574]
[1641058777229,15.13428131,175.12,175.04,50.00744574]
[1641058777431,12.13428131,175.12,175.04,5.70564574]
[1641058778029,12.13428131,175.09,175.04,5.70564574]
[1641058778234,12.13428131,175.09,175.01,58.41186474]
[1641058778430,12.13428131,175.09,175.01,18.17816474]
[1641058778734,5.70792545,175.17,174.99,12.17487586]
[1641058778735,12.13428131,175.08,174.99,12.17487586]
[1641058778931,12.13428131,175.08,174.99,39.83966586]
[1641058779129,15.13428131,175.08,174.99,39.83966586]
[1641058779330,12.13428131,175.08,174.99,39.83966586]
[1641058779630,12.13428131,175.06,175.0,1.23756106]
[1641058779832,3.0,175.05,175.0,1.23756106]
[1641058780234,3.0,175.02,175.0,1.23756106]
[1641058780730,3.0,175.02,174.97,39.83966586]
[1641058780929,3.0,175.02,174.93,38.17873018]
[1641058780930,3.0,175.02,174.95,12.17487586]
[1641058781531,15.13428131,175.03,174.95,12.17487586]
[1641058782133,12.13428131,175.01,174.94,1.23681887]
[1641058782933,12.13428131,175.0,174.97,27.66479]
[1641058783534,12.13428131,175.01,174.97,27.66479]
[1641058784336,12.13428131,175.0,174.97,27.66479]
[1641058784736,3.0,174.99,174.97,27.66479]
[1641058785738,17.95363902,175.0,174.97,27.66479]
[1641058786039,14.95363902,175.0,174.97,27.66479]
[1641058786242,14.95363902,174.98,174.97,32.36879]
[1641058787140,12.13428131,174.99,174.97,27.66479]
[1641058789446,12.13428131,175.01,174.97,27.66479]
[1641058790047,4.05567624,174.99,174.98,1.23684594]
[1641058790847,4.05567624,175.01,174.98,1.23684594]
[1641058791449,4.05567624,175.0,174.98,1.23684594]
[1641058792150,4.05567624,175.01,174.98,1.23684594]
[1641058792650,2.49907624,175.01,174.99,5.70727392]
[1641058792852,2.81935771,175.04,174.99,5.70727392]
[1641058793051,2.81935771,175.04,175.03,27.66479]
[1641058793252,12.13428131,175.05,175.03,27.66479]
[1641058793451,12.13428131,175.07,175.03,27.66479]
[1641058794052,12.13428131,175.07,175.03,30.66479]
[1641058794253,12.13428131,175.09,175.04,1.23684594]
[1641058794453,12.13428131,175.09,175.05,5.70532021]
[1641058794752,12.13428131,175.09,175.05,10.61632021]
[1641058794952,12.13428131,175.09,175.07,27.66479]
[1641058795354,12.13428131,175.11,175.07,27.66479]
[1641058796154,12.13428131,175.09,175.01,54.72337586]
[1641058797158,12.13428131,175.08,175.04,27.66479]
[1641058799760,3.0,175.09,175.04,27.66479]
[1641058799959,12.13428131,175.12,175.04,27.66479]
[1641058800759,14.93293227,175.12,175.04,27.66479]
[1641058801359,12.13428131,175.13,175.04,27.66479]
[1641058801858,12.13428131,175.13,175.04,30.66479]
[1641058802059,14.93293227,175.13,175.04,30.66479]
[1641058802262,14.93293227,175.13,175.04,27.66479]
[1641058802661,17.93293227,175.13,175.04,27.66479]
[1641058802960,2.79865096,175.13,175.04,27.66479]
[1641058803160,2.79865096,175.13,175.07,27.66479]
[1641058803560,12.13428131,175.14,175.07,27.66479]
[1641058803962,3.0,175.13,175.07,27.66479]
[1641058804161,3.0,175.12,175.07,27.66479]
[1641058804362,3.0,175.13,175.07,27.66479]
[1641058804763,3.0,175.11,175.07,27.66479]
[1641058804962,3.0,175.13,175.07,27.66479]
[1641058805566,2.79865096,175.1,175.04,27.66479]
[1641058806365,3.0,175.11,175.04,27.66479]
[1641058806562,3.0,175.1,175.04,27.66479]
[1641058806763,3.0,175.11,175.04,27.66479]
[1641058807065,2.79865096,175.12,175.04,27.66479]
[1641058807267,2.79865096,175.09,175.04,27.66479]
[1641058807965,2.79865096,175.12,175.04,27.66479]
[1641058808465,5.79865096,175.12,175.04,27.66479]
[1641058808664,39.79907131,175.14,175.04,27.66479]
[1641058808665,3.0,175.1,175.04,27.66479]
[1641058809064,14.93293227,175.13,175.0,27.66479]
[1641058809265,3.0,175.11,175.0,27.66479]
[1641058809466,2.79865096,175.09,175.0,27.66479]
[1641058809768,2.79865096,175.09,175.01,5.70678537]
[1641058810171,2.79865096,175.11,175.01,5.70678537]
[1641058810867,12.13428131,175.09,175.02,1.23789819]
[1641058811872,12.13428131,175.05,175.01,1.23789819]
[1641058812672,12.13428131,175.05,175.0,27.66479]
[1641058812875,12.13428131,175.08,175.0,27.66479]
[1641058813274,15.13428131,175.08,175.0,27.66479]
[1641058814374,12.13428131,175.08,175.0,27.66479]
[1641058814572,14.93293227,175.07,175.0,27.66479]
[1641058815174,12.13428131,175.07,175.03,27.66479]
[1641058815974,12.13428131,175.09,175.03,27.66479]
[1641058816475,3.0,175.07,175.03,27.66479]
[1641058816975,12.13428131,175.08,175.03,27.66479]
[1641058818378,12.13428131,175.09,175.03,27.66479]
[1641058818580,12.13428131,175.09,175.05,5.70548297]
[1641058819181,14.93293227,175.13,175.08,27.66479]
[1641058820180,17.93293227,175.13,175.08,27.66479]
[1641058820382,3.0,175.12,175.04,42.841]
[1641058820580,12.13428131,175.13,175.04,45.841]
[1641058820880,12.13428131,175.12,175.04,45.841]
[1641058821084,12.13428131,175.12,175.08,27.66479]
[1641058822084,12.13428131,175.13,175.08,27.66479]
[1641058822983,12.13428131,175.14,175.08,27.66479]
[1641058823184,12.13428131,175.14,175.13,27.66479]
[1641058823583,2.79865096,175.16,175.13,27.66479]
[1641058823883,2.79865096,175.16,175.13,33.36766995]
[1641058824184,12.13854621,175.16,175.13,33.36766995]
[1641058824383,9.33989525,175.16,175.13,33.36766995]
[1641058824782,9.33989525,175.16,175.13,27.66479]
[1641058824984,3.0,175.17,175.13,27.66479]
[1641058825383,10.21847986,175.23,175.13,27.66479]
[1641058825585,3.0,175.21,175.13,27.66479]
[1641058825985,32.46933823,175.2,175.13,27.66479]
[1641058826185,3.0,175.18,175.04,42.841]
[1641058826385,3.0,175.16,175.04,42.841]
[1641058826684,3.0,175.17,175.04,42.841]
[1641058826985,2.8106804,175.15,175.05,1.23529989]
[1641058827184,5.8106804,175.15,175.06,27.66479]
[1641058827385,2.8106804,175.15,175.06,27.66479]
[1641058827586,5.8106804,175.15,175.06,27.66479]
[1641058827786,3.0,175.1,175.01,5.70678537]
[1641058828186,41.1873,175.14,175.03,5.70613409]
[1641058828985,3.0,175.12,175.04,1.23527224]
[1641058829189,16.02916026,175.13,175.07,27.66479]
[1641058829385,3.0,175.12,175.07,27.66479]
[1641058829786,16.02916026,175.13,175.07,27.66479]
[1641058829987,35.28001863,175.12,175.07,27.66479]
[1641058830787,2.8106804,175.14,175.07,27.66479]
[1641058832089,35.28001863,175.17,175.11,5.70353049]
[1641058832688,14.53878926,175.18,175.12,1.23891366]
[1641058832990,3.0,175.19,175.12,1.23891366]
[1641058833188,3.0,175.18,175.12,1.23891366]
[1641058833390,3.0,175.18,175.12,27.66479]
[1641058833589,2.8106804,175.18,175.12,27.66479]
[1641058833988,32.46933823,175.19,175.12,27.66479]
[1641058834188,32.46933823,175.19,175.12,21.1774446]
[1641058835189,32.46933823,175.18,175.12,21.1774446]
[1641058835790,3.0,175.16,175.12,21.1774446]
[1641058835990,3.0,175.16,175.05,5.70548297]
[1641058836189,3.0,175.15,175.05,5.70548297]
[1641058836490,3.0,175.16,175.05,5.70548297]
[1641058836989,35.46933823,175.19,175.05,5.70548297]
[1641058837289,27.66479,175.18,175.09,27.66479]
[1641058837590,2.8106804,175.15,175.09,27.66479]
[1641058838195,45.49849849,175.17,175.09,27.66479]
[1641058839092,2.8106804,175.17,175.09,27.66479]
[1641058842400,13.02210406,175.17,175.09,27.66479]
[1641058843203,13.02210406,175.17,175.1,1.23934184]
[1641058846907,5.8106804,175.19,175.1,1.23934184]
[1641058847408,30.66479,175.18,175.1,1.23934184]
[1641058847608,27.66479,175.18,175.1,1.23934184]
[1641058847808,30.4754704,175.18,175.1,1.23934184]
[1641058848208,2.8106804,175.18,175.1,1.23934184]
[1641058848507,2.8106804,175.17,175.1,1.23934184]
[1641058849309,32.46933823,175.21,175.1,1.23934184]
[1641058849708,32.46933823,175.21,175.13,5.70287995]
[1641058849909,13.0197884,175.22,175.13,5.70287995]
[1641058850110,13.0197884,175.22,175.1,7.24707873]
[1641058850315,13.0197884,175.22,175.16,5.70174188]
[1641058850712,13.0197884,175.23,175.14,5.70255474]
[1641058851510,13.0197884,175.23,175.16,27.66479]
[1641058852913,13.0197884,175.23,175.17,1.23934184]
[1641058853716,13.0197884,175.23,175.16,27.66479]
[1641058853717,45.48912663,175.23,175.16,27.66479]
[1641058854213,3.0,175.18,175.12,5.70304257]
[1641058854413,3.0,175.21,175.12,5.70304257]
[1641058855215,12.16274949,175.16,175.12,5.70304257]
[1641058856015,4.05421106,175.13,175.12,5.70304257]
[1641058856619,4.05421106,175.13,175.12,6.94245078]
[1641058858418,4.05421106,175.15,175.12,6.94245078]
[1641058859019,4.05421106,175.16,175.13,1.23940821]
[1641058860221,4.05421106,175.14,175.13,1.23940821]
[1641058861023,1.106e-05,175.14,175.13,6.94147521]
[1641058861625,14.97342989,175.21,175.13,19.1042247]
[1641058862323,14.97342989,175.21,175.13,17.86481649]
[1641058862525,2.8106804,175.23,175.13,5.702067]
[1641058862724,2.8106804,175.23,175.13,49.809467]
[1641058865327,3.0,175.22,175.13,49.809467]
[1641058865525,2.8106804,175.23,175.13,49.809467]
[1641058865727,14.97342989,175.23,175.13,49.809467]
[1641058866427,2.8106804,175.22,175.13,49.809467]
[1641058867530,2.8106804,175.22,175.15,27.66479]
[1641058867829,2.8106804,175.23,175.15,27.66479]
[1641058869334,12.16274949,175.2,175.16,1.23973742]
[1641058870335,12.16274949,175.21,175.16,1.23973742]
[1641058871135,12.16274949,175.21,175.16,6.9414793]
[1641058871334,13.01601988,175.23,175.16,5.70174188]
[1641058871335,12.16274949,175.2,175.16,5.70174188]
[1641058872239,12.16274949,175.21,175.17,1.23976149]
[1641058872838,12.16274949,175.22,175.17,1.23976149]
[1641058873739,2.8106804,175.23,175.17,1.23976149]
[1641058873740,14.97342989,175.23,175.17,1.23976149]
[1641058874238,12.16274949,175.22,175.17,1.23976149]
[1641058874842,12.16274949,175.21,175.17,1.23976149]
[1641058875541,14.97342989,175.23,175.17,1.23976149]
[1641058876443,12.16274949,175.22,175.17,1.23976149]
[1641058880048,15.16274949,175.22,175.15,33.366857]
[1641058880249,12.16274949,175.2,175.15,33.366857]
[1641058881051,5.8106804,175.22,175.15,33.366857]
[1641058881052,12.16274949,175.19,175.15,33.366857]
[1641058881254,12.16274949,175.19,175.15,27.66479]
[1641058881749,12.16274949,175.18,175.15,27.66479]
[1641058883957,12.16274949,175.17,175.15,27.66479]
[1641058884558,3.0,175.17,175.15,27.66479]
[1641058884759,17.97342989,175.19,175.15,27.66479]
[1641058884961,14.97342989,175.19,175.15,27.66479]
[1641058885359,43.5201,175.22,175.15,27.66479]
[1641058885360,12.16274949,175.17,175.15,27.66479]
[1641058886062,12.16274949,175.18,175.15,27.66479]
[1641058887960,3.0,175.2,175.15,27.66479]
[1641058887961,12.16274949,175.2,175.15,27.66479]